bitfinex/quotes_BTCUSD_20250406
["timestamp","ask_amount","ask_price","bid_price","bid_amount"]
[1743945636312,3.13419921,82667.0,82666.0,26.69572538]
[1743945636545,3.12419921,82667.0,82666.0,26.69572538]
[1743945636780,3.10012075,82667.0,82666.0,26.35676907]
[1743945637009,2.9846474,82667.0,82666.0,26.01781276]
[1743945637240,2.9846474,82667.0,82666.0,25.50357773]
[1743945637475,2.95306108,82667.0,82666.0,24.52343043]
[1743945637749,3.09634108,82667.0,82666.0,24.52343043]
[1743945637966,3.1279274,82667.0,82666.0,24.18447412]
[1743945638413,3.1279274,82667.0,82666.0,24.17279862]
[1743945638633,2.9896474,82667.0,82666.0,23.83384231]
[1743945638880,2.94125025,82667.0,82666.0,23.83384231]
[1743945639118,2.94125025,82667.0,82666.0,23.494886]
[1743945639383,3.07947188,82667.0,82666.0,23.37324933]
[1743945639629,2.95804271,82667.0,82666.0,23.37324933]
[1743945639868,3.09624271,82667.0,82666.0,23.03429002]
[1743945640333,3.12782903,82667.0,82666.0,23.03429002]
[1743945641264,2.95804271,82667.0,82666.0,22.57369305]
[1743945641501,3.12778903,82667.0,82666.0,22.23473275]
[1743945641733,3.12778903,82667.0,82666.0,21.89577245]
[1743945641973,3.12782903,82667.0,82666.0,21.89577245]
[1743945642206,2.95804271,82667.0,82666.0,21.54513964]
[1743945642432,3.09620271,82667.0,82666.0,21.54513964]
[1743945642677,3.04780556,82667.0,82666.0,21.54513964]
[1743945642890,3.09616271,82667.0,82666.0,21.18199333]
[1743945643116,2.98223271,82667.0,82666.0,20.84303702]
[1743945643334,2.94445556,82667.0,82666.0,20.84303702]
[1743945643552,2.80633556,82667.0,82666.0,20.84303702]
[1743945643770,2.94441556,82667.0,82666.0,20.84303702]
[1743945643994,2.85473271,82667.0,82666.0,20.84303702]
[1743945644248,2.99277271,82667.0,82666.0,20.83698193]
[1743945644989,2.85473271,82667.0,82666.0,20.83698193]
[1743945645193,2.99273271,82667.0,82666.0,20.83698193]
[1743945645412,2.85473271,82667.0,82666.0,20.83698193]
[1743945645612,2.99273271,82667.0,82666.0,20.83698193]
[1743945645836,2.94433556,82667.0,82666.0,20.83698193]
[1743945646044,2.94429556,82667.0,82666.0,20.83698193]
[1743945646250,2.22010556,82667.0,82666.0,20.83698193]
[1743945646462,2.08214556,82667.0,82666.0,20.83698193]
[1743945646901,2.21530556,82667.0,82666.0,20.83698193]
[1743945647118,2.18775728,82667.0,82666.0,20.83698193]
[1743945647324,2.19775728,82667.0,82666.0,20.83698193]
[1743945647530,2.24615443,82667.0,82666.0,20.83698193]
[1743945647742,2.24115443,82667.0,82666.0,20.83698193]
[1743945647959,2.24615443,82667.0,82666.0,20.83698193]
[1743945648380,2.26871952,82667.0,82666.0,20.83698193]
[1743945648583,2.26371952,82667.0,82666.0,20.83698193]
[1743945648797,2.22032237,82667.0,82666.0,20.83698193]
[1743945649986,2.26871952,82667.0,82666.0,20.83698193]
[1743945650387,2.24615443,82667.0,82666.0,20.83698193]
[1743945651970,1.26874043,82667.0,82666.0,20.93138193]
[1743945652222,1.26870043,82667.0,82666.0,20.93138193]
[1743945652663,1.28324128,82667.0,82666.0,20.93138193]
[1743945652877,1.26870043,82667.0,82666.0,20.93138193]
[1743945653103,1.60870043,82667.0,82666.0,20.93138193]
[1743945653554,1.62324128,82667.0,82666.0,20.93138193]
[1743945653778,1.48500128,82667.0,82666.0,20.93138193]
[1743945654042,1.62332128,82667.0,82666.0,20.93138193]
[1743945654296,1.61832128,82667.0,82666.0,20.93138193]
[1743945654544,1.64671843,82667.0,82666.0,20.93138193]
[1743945654743,1.48500128,82667.0,82666.0,20.93138193]
[1743945654993,1.62336128,82667.0,82666.0,20.93138193]
[1743945655446,1.61836128,82667.0,82666.0,20.93138193]
[1743945655658,1.62336128,82667.0,82666.0,20.93138193]
[1743945656798,1.48000128,82667.0,82666.0,20.93138193]
[1743945657005,1.64175843,82667.0,82666.0,20.93138193]
[1743945657217,1.64675843,82667.0,82666.0,20.93138193]
[1743945657908,1.64675843,82667.0,82666.0,20.92230145]
[1743945658164,1.67080129,82667.0,82666.0,20.92230145]
[1743945658399,0.15684341,82667.0,82666.0,20.92230145]
[1743945658613,0.29940341,82667.0,82666.0,20.92230145]
[1743945658832,0.26572026,82667.0,82666.0,20.92230145]
[1743945659056,0.28681379,82667.0,82666.0,20.92230145]
[1743945659265,0.26065353,82667.0,82666.0,21.04519913]
[1743945659494,0.26565353,82667.0,82666.0,21.04519913]
[1743945659713,0.21918433,82667.0,82666.0,21.04519913]
[1743945659919,0.14312,82667.0,82666.0,21.00049913]
[1743945660129,0.09312,82667.0,82666.0,21.00049913]
[1743945660339,0.09812,82667.0,82666.0,21.00049913]
[1743945660770,0.09812,82667.0,82666.0,20.87760145]
[1743945660983,0.09812,82667.0,82666.0,20.89670145]
[1743945662689,0.22102297,82667.0,82666.0,20.89670145]
[1743945663389,0.57556382,82667.0,82666.0,20.87760145]
[1743945665498,0.57556382,82667.0,82666.0,20.82790145]
[1743945666992,0.59896097,82667.0,82666.0,20.82790145]
[1743945669299,0.57556382,82667.0,82666.0,20.82790145]
[1743945669725,0.59896097,82667.0,82666.0,20.82790145]
[1743945670364,0.57556382,82667.0,82666.0,20.82790145]
[1743945670569,0.58684889,82667.0,82666.0,20.82790145]
[1743945670777,0.58684889,82667.0,82666.0,20.8188223]
[1743945672257,0.61057684,82667.0,82666.0,20.8188223]
[1743945678967,0.63314284,82667.0,82666.0,20.8188223]
[1743945679206,0.63314284,82667.0,82666.0,20.81276909]
[1743945680613,0.67864284,82667.0,82666.0,20.81276909]
[1743945680869,0.68573884,82667.0,82666.0,20.81276909]
[1743945681120,0.68573884,82667.0,82666.0,20.80368741]
[1743945681337,0.69073884,82667.0,82666.0,20.78855123]
[1743945681765,20.68573884,82667.0,82666.0,20.78855123]
[1743945681964,20.70372891,82667.0,82666.0,20.78855123]
[1743945682243,20.73272891,82667.0,82666.0,20.78855123]
[1743945682468,20.78002891,82667.0,82666.0,20.78855123]
[1743945682679,20.77602891,82667.0,82666.0,20.78855123]
[1743945682926,20.78002891,82667.0,82666.0,20.78855123]
[1743945683389,20.82894891,82667.0,82666.0,20.78855123]
[1743945683625,20.82394891,82667.0,82666.0,20.78855123]
[1743945683851,20.82894891,82667.0,82666.0,20.78855123]
[1743945684337,20.82886891,82667.0,82666.0,20.78855123]
[1743945685313,20.80386891,82667.0,82666.0,20.78855123]
[1743945685559,20.66190891,82667.0,82666.0,20.78855123]
[1743945685796,20.80402891,82667.0,82666.0,20.78855123]
[1743945686041,20.78146291,82667.0,82666.0,20.78855123]
[1743945686524,20.77646291,82667.0,82666.0,20.78855123]
[1743945686786,20.77246291,82667.0,82666.0,20.78855123]
[1743945687053,20.78146291,82667.0,82666.0,20.78855123]
[1743945688531,21.82742291,82667.0,82666.0,20.78855123]
[1743945691359,21.82242291,82667.0,82666.0,20.78855123]
[1743945691765,21.82742291,82667.0,82666.0,20.78855123]
[1743945691972,21.82742291,82667.0,82666.0,20.77946954]
[1743945692166,21.82742291,82667.0,82666.0,20.76433304]
[1743945692384,21.82342291,82667.0,82666.0,20.76433304]
[1743945692719,21.82742291,82667.0,82666.0,20.76433304]
[1743945692936,21.82742291,82667.0,82666.0,20.42538173]
[1743945693363,21.85861367,82667.0,82666.0,20.42538173]
[1743945693734,21.88361367,82667.0,82666.0,20.42538173]
[1743945694133,21.90615319,82667.0,82666.0,20.42538173]
[1743945695358,21.76403319,82667.0,82666.0,20.42538173]
[1743945695667,21.88381367,82667.0,82666.0,20.42538173]
[1743945697312,21.85881367,82667.0,82666.0,20.42538173]
[1743945697519,21.88381367,82667.0,82666.0,20.42538173]
[1743945698247,21.85881367,82667.0,82666.0,20.42538173]
[1743945698863,22.55881367,82667.0,82666.0,20.42538173]
[1743945700410,21.85881367,82667.0,82666.0,20.42538173]
[1743945700934,21.85841367,82667.0,82666.0,20.42538173]
[1743945701230,21.71649367,82667.0,82666.0,20.42538173]
[1743945701444,21.97722291,82667.0,82666.0,20.42538173]
[1743945702728,22.00145291,82667.0,82666.0,20.42538173]
[1743945702941,22.00145291,82667.0,82666.0,20.41629923]
[1743945703156,21.97722291,82667.0,82666.0,19.72306738]
[1743945703374,22.01355391,82667.0,82666.0,19.38411607]
[1743945703582,22.01355391,82667.0,82666.0,19.04516476]
[1743945703783,22.01355391,82667.0,82666.0,18.70621345]
[1743945705320,22.03612006,82667.0,82666.0,18.70621345]
[1743945706697,22.04514838,82667.0,82666.0,18.70621345]
[1743945710995,22.04474838,82667.0,82666.0,18.66893975]
[1743945712593,22.02218223,82667.0,82666.0,18.66893975]
[1743945713917,22.02218223,82667.0,82666.0,18.65985748]
[1743945716690,22.14968223,82667.0,82666.0,18.65985748]
[1743945717633,22.18087299,82667.0,82666.0,18.65985748]
[1743945718376,22.90587299,82667.0,82666.0,18.09458064]
[1743945718898,23.34749145,82667.0,82666.0,18.09458064]
[1743945719097,23.34749145,82667.0,82666.0,17.43608964]
[1743945719302,23.37172145,82667.0,82666.0,16.43121874]
[1743945719703,23.36772145,82667.0,82666.0,15.86666374]
[1743945719909,23.36672145,82667.0,82666.0,15.86666374]
[1743945720108,23.37172145,82667.0,82666.0,15.86666374]
[1743945720322,23.30741223,82667.0,82666.0,15.41775428]
[1743945720741,23.30621705,82667.0,82666.0,15.41775428]
[1743945720961,23.31121705,82667.0,82666.0,15.41775428]
[1743945722440,23.31121705,82667.0,82666.0,14.95716932]
[1743945722648,23.16121705,82667.0,82666.0,14.95716932]
[1743945722866,22.8041362,82667.0,82666.0,14.94812235]
[1743945723093,22.6629762,82667.0,82666.0,14.94812235]
[1743945723298,22.79522788,82667.0,82666.0,14.94812235]
[1743945723702,22.69742788,82667.0,82666.0,14.94812235]
[1743945723897,23.03342788,82667.0,82666.0,14.59786188]
[1743945724099,23.03842788,82667.0,82666.0,14.59786188]
[1743945724298,23.12037949,82667.0,82666.0,14.59786188]
[1743945724516,23.26297949,82667.0,82666.0,14.59786188]
[1743945724749,23.12037949,82667.0,82666.0,14.59786188]
[1743945724952,23.26297949,82667.0,82666.0,14.59786188]
[1743945725383,22.56297949,82667.0,82666.0,14.59786188]
[1743945725810,22.58559808,82667.0,82666.0,14.59786188]
[1743945726543,22.56297949,82667.0,82666.0,14.59786188]
[1743945726783,22.56297949,82667.0,82666.0,14.24195024]
[1743945727008,23.26297949,82667.0,82666.0,14.24195024]
[1743945727614,23.26297949,82667.0,82666.0,13.90300093]
[1743945727823,23.31207949,82667.0,82666.0,13.20063014]
[1743945728024,23.31207949,82667.0,82666.0,12.86168083]
[1743945728228,23.31207949,82667.0,82666.0,12.18378221]
[1743945728229,23.28088873,82667.0,82666.0,12.18378221]
[1743945728818,23.28088873,82667.0,82666.0,11.96599298]
[1743945729047,23.28088873,82667.0,82666.0,11.62704367]
[1743945729246,23.28088873,82667.0,82666.0,11.28809436]
[1743945729449,23.28088873,82667.0,82666.0,10.94914505]
[1743945729791,23.28088873,82667.0,82666.0,10.39240901]
[1743945730162,23.28088873,82667.0,82666.0,10.0534597]
[1743945730369,23.28056873,82667.0,82666.0,9.71451039]
[1743945730588,23.28056873,82667.0,82666.0,9.02493628]
[1743945730790,23.28056873,82667.0,82666.0,8.68598697]
[1743945730991,23.28056873,82667.0,82666.0,8.34703766]
[1743945731203,23.28056873,82667.0,82666.0,8.00808835]
[1743945731433,23.26456873,82667.0,82666.0,7.66913904]
[1743945731888,23.26456873,82667.0,82666.0,6.97936835]
[1743945732111,23.26456873,82667.0,82666.0,6.30146973]
[1743945732335,23.26456873,82667.0,82666.0,5.96252042]
[1743945732800,23.24033873,82667.0,82666.0,5.62357111]
[1743945733241,23.24033873,82667.0,82666.0,5.60944614]
[1743945733681,23.24017873,82667.0,82666.0,5.60944614]
[1743945734325,23.24017873,82667.0,82666.0,5.59777064]
[1743945734549,23.24017873,82667.0,82666.0,4.80991285]
[1743945734976,23.24017873,82667.0,82666.0,4.47096454]
[1743945735205,23.27136949,82667.0,82666.0,4.47096454]
[1743945736445,23.27136949,82667.0,82666.0,4.10903144]
[1743945737158,23.27136949,82667.0,82666.0,3.89124471]
[1743945737818,23.27136949,82667.0,82666.0,3.5995665]
[1743945738080,23.32548795,82667.0,82666.0,2.92166788]
[1743945738332,23.29636949,82667.0,82666.0,2.24376926]
[1743945738570,23.27136949,82667.0,82666.0,1.90481895]
[1743945738781,23.2939906,82667.0,82666.0,1.55981167]
[1743945738993,23.2939906,82667.0,82666.0,1.51472771]
[1743945739202,23.2939906,82667.0,82666.0,1.29480537]
[1743945739413,23.2939906,82667.0,82666.0,0.95585606]
[1743945739613,23.1518706,82667.0,82666.0,0.95585606]
[1743945739826,23.2957506,82667.0,82666.0,0.58826828]
[1743945740039,23.27235345,82667.0,82666.0,0.55226828]
[1743945740243,23.2957506,82667.0,82666.0,0.55226828]
[1743945740450,23.24116269,82667.0,82666.0,0.55226828]
[1743945741037,23.13705984,82667.0,82666.0,0.55226828]
[1743945741457,23.13705984,82667.0,82666.0,0.21331697]
[1743945741887,23.11366269,82667.0,82666.0,0.17731697]
[1743945742294,23.13705984,82667.0,82666.0,0.17731697]
[1743945742519,22.99317984,82667.0,82666.0,0.17731697]
[1743945742939,22.98067199,82667.0,82666.0,0.14131697]
[1743945743143,23.00730884,82667.0,82666.0,0.14131697]
[1743945743362,23.05230884,82667.0,82666.0,0.14131697]
[1743945743592,23.05230884,82667.0,82666.0,0.10531697]
[1743945744590,23.02891169,82667.0,82666.0,0.10531697]
[1743945744801,22.35230884,82667.0,82666.0,0.10531697]
[1743945747201,0.55939,82666.0,82665.0,2e-08]
[1743945747407,0.68229297,82666.0,82665.0,2e-08]
[1743945747726,0.72656102,82666.0,82665.0,2e-08]
[1743945748508,0.70393991,82666.0,82665.0,2e-08]
[1743945749444,0.71393991,82666.0,82665.0,0.00100002]
[1743945749642,0.559403,82660.0,82659.0,0.01191699]
[1743945749835,0.68230597,82660.0,82659.0,0.01191699]
[1743945750036,0.69272814,82660.0,82659.0,0.01191699]
[1743945750238,0.71536077,82660.0,82659.0,0.01191699]
[1743945750571,0.69272814,82660.0,82659.0,0.01191699]
[1743945750696,1.75021321,82660.0,82659.0,0.01191699]
[1743945750901,1.75521321,82660.0,82659.0,0.01291699]
[1743945751106,1.76021321,82660.0,82659.0,0.01291699]
[1743945752110,1.72874821,82660.0,82659.0,0.01291699]
[1743945752343,1.74084521,82660.0,82659.0,0.01291699]
[1743945752547,1.87262821,82660.0,82659.0,0.01291699]
[1743945755339,1.88472521,82660.0,82659.0,0.01291699]
[1743945756236,1.93262521,82660.0,82659.0,0.01291699]
[1743945757078,1.93262521,82660.0,82659.0,0.00438262]
[1743945757318,1.93262521,82660.0,82659.0,0.00057824]
[1743945757766,1.92134014,82660.0,82659.0,0.00057824]
[1743945758370,1.955303,82660.0,82659.0,0.00057824]
[1743945760456,0.49,82641.0,82640.0,0.0436253]
[1743945760641,0.77084382,82641.0,82640.0,0.0436253]
[1743945760861,0.80399644,82641.0,82640.0,0.0436253]
[1743945761273,0.81533661,82641.0,82640.0,0.0436253]
[1743945761663,0.82038215,82641.0,82640.0,0.0436253]
[1743945762684,0.82538215,82641.0,82640.0,0.0436253]
[1743945762884,0.80275946,82641.0,82640.0,0.0436253]
[1743945764517,0.82539012,82641.0,82640.0,0.0436253]
[1743945765753,0.80275946,82641.0,82640.0,0.0436253]
[1743945767571,0.63821861,82641.0,82640.0,0.0436253]
[1743945770349,0.49481861,82641.0,82640.0,0.0436253]
[1743945770586,0.63773861,82641.0,82640.0,0.0436253]
[1743945770822,0.63769861,82641.0,82640.0,0.03454312]
[1743945772167,0.49481861,82641.0,82640.0,0.03454312]
[1743945772367,0.63757861,82641.0,82640.0,0.03454312]
[1743945772898,0.62623844,82641.0,82640.0,0.03365187]
[1743945773524,0.62623844,82641.0,82640.0,0.03161542]
[1743945774131,0.62623844,82641.0,82640.0,0.03015675]
[1743945776631,0.62623844,82641.0,82640.0,0.03032225]
[1743945777694,0.62656944,82641.0,82640.0,0.03032225]
[1743945781181,10.72656944,82641.0,82640.0,0.03032225]
[1743945781432,10.58380944,82641.0,82640.0,0.0319251]
[1743945781593,10.72612944,82641.0,82640.0,0.0319251]
[1743945781795,10.24380944,82641.0,82640.0,0.05471816]
[1743945782167,10.19754647,82641.0,82640.0,0.05471816]
[1743945782371,10.15883684,82641.0,82640.0,0.02456141]
[1743945782575,10.01619684,82641.0,82640.0,0.02456141]
[1743945782779,10.02119684,82641.0,82640.0,0.02456141]
[1743945783186,8.52139684,82641.0,82640.0,0.02956141]
[1743945783404,7.77649684,82641.0,82640.0,0.02956141]
[1743945783828,7.76649684,82641.0,82640.0,0.02956141]
[1743945784032,7.77780891,82641.0,82640.0,0.02956141]
[1743945784772,7.78280891,82641.0,82640.0,0.02956141]
[1743945784994,7.78380891,82641.0,82640.0,0.02956141]
[1743945785200,7.77880891,82641.0,82640.0,0.02956141]
[1743945785549,7.78080891,82641.0,82640.0,0.02956141]
[1743945790703,7.78080891,82641.0,82640.0,0.02456141]
[1743945792305,7.78113991,82641.0,82640.0,0.02456141]
[1743945792725,0.02363344,82641.0,82640.0,0.02456141]
[1743945793146,0.01464307,82641.0,82640.0,0.02456141]
[1743945796771,0.26464307,82641.0,82640.0,0.02456141]
[1743945796981,0.003331,82641.0,82640.0,0.02456141]
[1743945797194,0.01259914,82641.0,82640.0,0.02456141]
[1743945797415,0.003331,82641.0,82640.0,0.02456141]
[1743945798949,0.01461995,82641.0,82640.0,0.01956141]
[1743945800778,0.02388809,82641.0,82640.0,0.01956141]
[1743945800997,0.48679106,82641.0,82640.0,0.01956141]
[1743945801893,0.48379106,82641.0,82640.0,0.01956141]
[1743945802269,0.48679106,82641.0,82640.0,0.00160285]
[1743945803030,0.34,82640.0,82636.0,0.30346074]
[1743945803241,0.46290297,82640.0,82639.0,0.00160285]
[1743945803657,0.46290297,82640.0,82636.0,0.30346074]
[1743945803861,0.34,82638.0,82636.0,0.30346074]
[1743945804037,0.60462297,82637.0,82636.0,0.30346074]
[1743945804254,0.60462297,82637.0,82636.0,0.30506359]
[1743945804456,0.61592491,82637.0,82636.0,0.30506359]
[1743945805194,0.61592491,82637.0,82636.0,0.30522909]
[1743945805402,0.61792491,82637.0,82636.0,0.30522909]
[1743945805541,0.66422491,82637.0,82636.0,0.30522909]
[1743945805750,0.71232491,82637.0,82636.0,0.30522909]
[1743945806391,0.71232491,82637.0,82636.0,0.30362624]
[1743945806843,0.77123502,82637.0,82636.0,0.30362624]
[1743945807042,0.78577587,82637.0,82636.0,0.30362624]
[1743945807632,0.78677587,82637.0,82636.0,0.30362624]
[1743945808087,0.78977587,82637.0,82636.0,0.30362624]
[1743945808300,0.76923502,82637.0,82636.0,0.30362624]
[1743945808504,0.77523502,82637.0,82636.0,0.30362624]
[1743945808708,0.78131502,82637.0,82636.0,0.30362624]
[1743945809117,0.78131502,82637.0,82636.0,0.30522909]
[1743945809320,0.72240491,82637.0,82636.0,0.30522909]
[1743945812245,0.58060491,82637.0,82636.0,0.33578502]
[1743945812453,0.72224491,82637.0,82636.0,0.30522909]
[1743945813883,0.72212491,82637.0,82636.0,0.30522909]
[1743945816274,0.83074522,82637.0,82636.0,0.30522909]
[1743945816713,0.81944328,82637.0,82636.0,0.30522909]
[1743945817211,0.82835514,82637.0,82636.0,0.30522909]
[1743945818175,0.82835514,82637.0,82636.0,0.40522909]
[1743945819804,0.82835514,82637.0,82636.0,0.50522909]
[1743945821760,0.59243514,82637.0,82636.0,0.55578502]
[1743945821971,0.73395514,82637.0,82636.0,0.55578502]
[1743945823006,0.61933483,82637.0,82636.0,0.55578502]
[1743945823222,0.62433483,82637.0,82636.0,0.55578502]
[1743945823543,0.62433483,82637.0,82636.0,0.50522909]
[1743945823744,0.61833483,82637.0,82636.0,0.50522909]
[1743945823965,0.61817483,82637.0,82636.0,0.50522909]
[1743945824167,0.62417483,82637.0,82636.0,0.50522909]
[1743945825689,0.62417483,82637.0,82636.0,0.60522909]
[1743945826187,0.62417483,82637.0,82636.0,0.66578502]
[1743945826188,0.48281483,82637.0,82636.0,0.66578502]
[1743945826411,0.62397483,82637.0,82636.0,0.66578502]
[1743945826622,0.48281483,82637.0,82636.0,0.66578502]
[1743945826871,0.01991186,82637.0,82636.0,0.66578502]
[1743945827092,0.16103186,82637.0,82636.0,0.66578502]
[1743945827336,0.50112318,82637.0,82636.0,0.66578502]
[1743945827735,0.16112318,82637.0,82636.0,0.66578502]
[1743945829137,0.16100318,82637.0,82636.0,0.66578502]
[1743945830027,0.02000318,82637.0,82636.0,0.66578502]
[1743945830264,0.16096318,82637.0,82636.0,0.66578502]
[1743945830958,0.01500318,82637.0,82636.0,0.66578502]
[1743945831457,0.343,82637.0,82636.0,0.66578502]
[1743945831690,0.35209824,82637.0,82636.0,0.66578502]
[1743945832365,0.35409824,82637.0,82636.0,0.66418217]
[1743945832629,0.52570121,82637.0,82636.0,0.66578502]
[1743945832902,0.52570121,82637.0,82636.0,0.60522909]
[1743945833130,0.52270121,82637.0,82636.0,0.60522909]
[1743945833367,0.52470121,82637.0,82636.0,0.60522909]
[1743945833818,0.52270121,82637.0,82636.0,0.60522909]
[1743945834265,0.52370121,82637.0,82636.0,0.66578502]
[1743945834730,0.52470121,82637.0,82636.0,0.66578502]
[1743945834959,0.52370121,82637.0,82636.0,0.66578502]
[1743945835184,0.66670121,82637.0,82636.0,0.66578502]
[1743945835973,0.66670121,82637.0,82636.0,0.76578502]
[1743945839496,0.61768121,82637.0,82636.0,0.76578502]
[1743945846041,0.87768121,82637.0,82636.0,0.76578502]
[1743945846245,0.61768121,82637.0,82636.0,0.76578502]
[1743945848342,0.66538121,82637.0,82636.0,0.76578502]
[1743945849012,0.67671385,82637.0,82636.0,0.76578502]
[1743945850172,0.66032601,82637.0,82636.0,0.76578502]
[1743945850393,0.6829734,82637.0,82636.0,0.76418217]
[1743945850618,0.6829734,82637.0,82636.0,0.76578502]
[1743945852279,0.5422934,82637.0,82636.0,0.76578502]
[1743945852472,0.6824534,82637.0,82636.0,0.76578502]
[1743945852878,0.6824534,82637.0,82636.0,0.76418217]
[1743945853090,0.6824534,82637.0,82636.0,0.76578502]
[1743945854201,0.7304534,82637.0,82636.0,0.76418217]
[1743945855288,0.7304534,82637.0,82636.0,0.70522909]
[1743945855489,0.7274534,82637.0,82636.0,0.70522909]
[1743945855706,0.7637864,82637.0,82636.0,0.70522909]
[1743945855917,0.7687864,82637.0,82636.0,0.70522909]
[1743945856145,0.7667864,82637.0,82636.0,0.70522909]
[1743945856353,0.7657864,82637.0,82636.0,0.70522909]
[1743945856559,0.7617864,82637.0,82636.0,0.70522909]
[1743945856763,0.7667864,82637.0,82636.0,0.70522909]
[1743945856975,0.78632725,82637.0,82636.0,0.70622909]
[1743945857382,0.78632725,82637.0,82636.0,0.70462624]
[1743945857831,0.78632725,82637.0,82636.0,0.69554325]
[1743945858036,0.78632725,82637.0,82636.0,0.64874325]
[1743945858607,0.78632725,82637.0,82636.0,0.59874325]
[1743945859422,0.81858885,82637.0,82636.0,0.59874325]
[1743945860029,0.81858885,82637.0,82636.0,0.59268723]
[1743945860450,1.85966885,82637.0,82636.0,0.59268723]
[1743945860668,1.85466885,82637.0,82636.0,0.59168723]
[1743945860885,1.85466885,82637.0,82636.0,0.69268723]
[1743945861121,1.82333585,82637.0,82636.0,0.69268723]
[1743945861347,1.79107425,82637.0,82636.0,0.69268723]
[1743945862189,1.79607425,82637.0,82636.0,0.69268723]
[1743945862640,1.79107425,82637.0,82636.0,0.69268723]
[1743945863072,1.79611425,82637.0,82636.0,0.69268723]
[1743945863280,1.94611425,82637.0,82636.0,0.69268723]
[1743945863506,1.7815734,82637.0,82636.0,0.69268723]
[1743945864739,1.7815734,82637.0,82636.0,0.68701426]
[1743945868759,1.6413734,82637.0,82636.0,0.68701426]
[1743945869109,1.65591425,82637.0,82636.0,0.68701426]
[1743945869333,1.79623425,82637.0,82636.0,0.68701426]
[1743945869544,1.65591425,82637.0,82636.0,0.67793066]
[1743945869777,1.79619425,82637.0,82636.0,0.67793066]
[1743945870204,1.65591425,82637.0,82636.0,0.67793066]
[1743945870437,1.79615425,82637.0,82636.0,0.67793066]
[1743945870877,1.79648525,82637.0,82636.0,0.67793066]
[1743945871653,1.65624525,82637.0,82636.0,0.67793066]
[1743945871866,1.79652525,82637.0,82636.0,0.67793066]
[1743945872076,1.65624525,82637.0,82636.0,0.67793066]
[1743945872291,1.79652525,82637.0,82636.0,0.67793066]
[1743945873051,1.65624525,82637.0,82636.0,0.67793066]
[1743945873269,1.79644525,82637.0,82636.0,0.67793066]
[1743945873490,2.05644525,82637.0,82636.0,0.67793066]
[1743945873707,1.79644525,82637.0,82636.0,0.67793066]
[1743945874954,1.82870685,82637.0,82636.0,0.67793066]
[1743945875173,1.68850685,82637.0,82636.0,0.67793066]
[1743945876486,1.82886685,82637.0,82636.0,0.67187469]
[1743945877140,1.68850685,82637.0,82636.0,0.67187469]
[1743945877358,1.82878685,82637.0,82636.0,0.67187469]
[1743945879275,1.82914685,82637.0,82636.0,0.67187469]
[1743945879742,1.82978685,82637.0,82636.0,0.67187469]
[1743945880654,1.82978685,82637.0,82636.0,0.66279059]
[1743945880887,1.68850685,82637.0,82636.0,0.66279059]
[1743945881092,1.82982685,82637.0,82636.0,0.66279059]
[1743945882764,1.68850685,82637.0,82636.0,0.66279059]
[1743945882970,1.82966685,82637.0,82636.0,0.66279059]
[1743945883559,1.68850685,82637.0,82636.0,0.66279059]
[1743945883808,1.82962685,82637.0,82636.0,0.66279059]
[1743945884216,2.08958685,82637.0,82636.0,0.66279059]
[1743945884423,1.79732525,82637.0,82636.0,0.66279059]
[1743945884631,1.79728525,82637.0,82636.0,0.66279059]
[1743945886066,1.65624525,82637.0,82636.0,0.66279059]
[1743945886292,1.79720525,82637.0,82636.0,0.66279059]
[1743945886914,1.65624525,82637.0,82636.0,0.66279059]
[1743945887119,1.79712525,82637.0,82636.0,0.66279059]
[1743945887336,1.6417044,82637.0,82636.0,0.66279059]
[1743945887540,1.7825444,82637.0,82636.0,0.66279059]
[1743945887713,1.6417044,82637.0,82636.0,0.66279059]
[1743945887923,1.7825844,82637.0,82636.0,0.66279059]
[1743945888319,1.6417044,82637.0,82636.0,0.66279059]
[1743945888553,1.7825444,82637.0,82636.0,0.66279059]
[1743945890427,2.01086285,82637.0,82636.0,0.66279059]
[1743945890693,1.79708525,82637.0,82636.0,0.66279059]
[1743945890899,1.69258625,82637.0,82636.0,0.66279059]
[1743945891154,1.83334625,82637.0,82636.0,0.66279059]
[1743945891370,1.90136385,82637.0,82636.0,0.65370663]
[1743945891579,2.04212385,82637.0,82636.0,0.65370663]
[1743945892207,2.03712385,82637.0,82636.0,0.65270663]
[1743945892406,1.89636385,82637.0,82636.0,0.65270663]
[1743945892551,2.04208385,82637.0,82636.0,0.65270663]
[1743945893143,2.04708385,82637.0,82636.0,0.65270663]
[1743945893362,2.04200385,82637.0,82636.0,0.65270663]
[1743945893582,2.04700385,82637.0,82636.0,0.65270663]
[1743945897387,2.04676385,82637.0,82636.0,0.65270663]
[1743945899000,1.83298625,82637.0,82636.0,0.65270663]
[1743945899232,1.69258625,82637.0,82636.0,0.65270663]
[1743945899456,1.83290625,82637.0,82636.0,0.65270663]
[1743945900640,1.83282625,82637.0,82636.0,0.65270663]
[1743945900878,1.8182854,82637.0,82636.0,0.65270663]
[1743945901369,1.79563801,82637.0,82636.0,0.64362284]
[1743945901590,1.81017886,82637.0,82636.0,0.63902205]
[1743945905170,1.79884622,82637.0,82636.0,0.63902205]
[1743945907147,1.81018992,82637.0,82636.0,0.63902205]
[1743945907764,1.55970907,82637.0,82636.0,0.63902205]
[1743945907980,1.66352807,82637.0,82636.0,0.63902205]
[1743945908195,1.52336807,82637.0,82636.0,0.63902205]
[1743945908417,1.66356807,82637.0,82636.0,0.63902205]
[1743945909089,1.65222437,82637.0,82636.0,0.63902205]
[1743945911819,1.74722682,82637.0,82636.0,0.63902205]
[1743945912045,1.78356382,82637.0,82636.0,0.63902205]
[1743945912486,1.7949064,82637.0,82636.0,0.62993818]
[1743945913638,1.78356382,82637.0,82636.0,0.62993818]
[1743945913844,1.75130222,82637.0,82636.0,0.62993818]
[1743945914550,1.54836137,82637.0,82636.0,0.62993818]
[1743945914764,1.65242437,82637.0,82636.0,0.62993818]
[1743945915624,1.65242437,82637.0,82636.0,0.63154103]
[1743945915625,1.18841221,82637.0,82636.0,0.63154103]
[1743945916023,1.32885221,82637.0,82636.0,0.74152815]
[1743945916230,0.62277221,82637.0,82636.0,0.67834103]
[1743945916366,0.27777221,82637.0,82636.0,0.67834103]
[1743945916598,0.27277221,82637.0,82636.0,0.67834103]
[1743945916819,0.27777221,82637.0,82636.0,0.67834103]
[1743945917048,0.61277221,82637.0,82636.0,0.67834103]
[1743945917504,0.47233221,82637.0,82636.0,0.67834103]
[1743945917726,0.61269221,82637.0,82636.0,0.77878354]
[1743945918181,0.61269221,82637.0,82636.0,0.68084103]
[1743945918632,0.61769221,82637.0,82636.0,0.68084103]
[1743945919106,0.62769221,82637.0,82636.0,0.68084103]
[1743945919324,0.62269221,82637.0,82636.0,0.63154103]
[1743945919557,0.61769221,82637.0,82636.0,0.63154103]
[1743945920094,0.62269221,82637.0,82636.0,0.63154103]
[1743945922446,0.48233221,82637.0,82636.0,0.63154103]
[1743945922675,0.62285221,82637.0,82636.0,0.63154103]
[1743945922927,0.62281221,82637.0,82636.0,0.63154103]
[1743945923391,0.62285221,82637.0,82636.0,0.67697603]
[1743945924968,0.62285221,82637.0,82636.0,0.63154103]
[1743945930943,0.62285221,82637.0,82636.0,0.62993818]
[1743945931427,0.34,82635.0,82633.0,0.0003302]